Workbook

Sheet паспорт
A1: ПАТ "УКРТРАНСГАЗ" | G1: ПАСПОРТ ФІЗИКО-ХІМІЧНИХ ПОКАЗНИКІВ ПРИРОДНОГО ГАЗУ № 169
A2: Філія "УМГ "КИЇВТРАНСГАЗ" | G2: переданого Чернігівським ЛВУМГ та прийнятого ПАТ "Київоблгаз", ІП "КОКА-КОЛА БЕВЕРІДЖИЗ УКРАЇНА ЛІМІТЕД"
A3: Чернігівське ЛВУМГ | G3: Маршрут № 169
A4: Вимірювальна хіміко-аналітична лабораторія
A5: Свідоцтво № 74/2014 чинно до 01.07.2019 р. | K5: по газопроводу "ДАШАВА-КИЇВ-БРЯНСЬК-МОСКВА" | V5: за період з | X5: 2017-05-01 | Z5: по | AA5: 2017-05-31
A7: Число місяця | B7: Компонентний склад, % мол. | N7: Фізико-хімічні показники газу обчислені на основі компонентного складу, 101,325 кПа | X7: Температура точки роси за вологою (Р = 3.92 МПа), ºС | Y7: Температура точки роси за вуглеводнями, ºС | Z7: Вміст сірководню, г/м3 | AA7: Вміст меркаптанової сірки, г/м3 | AB7: Вміст механічних домішок, г/м3
N8: Густина абсолютна, кг/м3,при 20 ºС, | O8: Температура вимірювання/згоряння при 20/25°С
B9: метан, С1 | C9: етан, С2 | D9: пропан, С3 | E9: ізо-бутан, і-С4 | F9: н-бутан, н-С4 | G9: нео-пентан, нео-С5 | H9: ізо-пентан, і-С5 | I9: н-пентан, н-С5 | J9: гексани та вищі, С6+ | K9: кисень, О2 | L9: азот, N2 | M9: діоксид вуглецю, CО2 | O9: Теплота згоряння нижча | R9: Теплота згоряння вища | U9: Число Воббе вище
O10: ккал/м3 | P10: МДж/м3 | Q10: кВт⋅год/м3 | R10: ккал/м3 | S10: МДж/м3 | T10: кВт⋅год/м3 | U10: ккал/м3 | V10: МДж/м3 | W10: кВт⋅год/м3
A11: 1 | O11: 8210 | P11: 34.37 | Q11: 9.55 | R11: 9090 | S11: 38.06 | T11: 10.57 | AC11: =SUM(B11:M11)+$K$42+$N$42 -> 0
A12: 2 | B12: 89.7677 | C12: 4.9664 | D12: 1.1068 | E12: 0.1172 | F12: 0.2095 | G12: 0.0041 | H12: 0.0516 | I12: 0.0364 | J12: 0.0272 | K12: 0.0037 | L12: 1.7516 | M12: 1.958 | N12: 0.7506 | O12: 8228 | P12: 34.45 | Q12: 9.57 | R12: 9109 | S12: 38.14 | T12: 10.59 | U12: 11539 | V12: 48.31 | W12: 13.42 | X12: -10 | Y12: -9.8 | Z12: 0.0001 | AA12: 0.0004 | AB12: відс. | AC12: 100.0002
A13: 3 | O13: 8228 | P13: 34.45 | Q13: 9.57 | R13: 9109 | S13: 38.14 | T13: 10.59 | AC13: 0 | AD13: =IF(AC13=100,"ОК"," ") -> 
A14: 4 | O14: 8228 | P14: 34.45 | Q14: 9.57 | R14: 9109 | S14: 38.14 | T14: 10.59 | AC14: 0 | AD14: =IF(AC14=100,"ОК"," ") -> 
A15: 5 | O15: 8228 | P15: 34.45 | Q15: 9.57 | R15: 9109 | S15: 38.14 | T15: 10.59 | AC15: 0
A16: 6 | O16: 8228 | P16: 34.45 | Q16: 9.57 | R16: 9109 | S16: 38.14 | T16: 10.59 | AC16: 0
A17: 7 | O17: 8228 | P17: 34.45 | Q17: 9.57 | R17: 9109 | S17: 38.14 | T17: 10.59 | AC17: 0
A18: 8 | O18: 8228 | P18: 34.45 | Q18: 9.57 | R18: 9109 | S18: 38.14 | T18: 10.59 | AC18: =SUM(B18:M18)+$K$42+$N$42 -> 0
A19: 9 | B19: 89.7539 | C19: 4.9574 | D19: 1.1163 | E19: 0.1152 | F19: 0.2047 | G19: 0.0039 | H19: 0.0491 | I19: 0.0352 | J19: 0.0322 | K19: 0.0057 | L19: 1.721 | M19: 2.0054 | N19: 0.7511 | O19: 8226 | P19: 34.44 | Q19: 9.57 | R19: 9107 | S19: 38.13 | T19: 10.59 | U19: 11534 | V19: 48.29 | W19: 13.41 | X19: -9.8 | Y19: -10 | Z19: 0.0001 | AA19: 0.0004 | AB19: відс. | AC19: 100 | AD19: ОК
A20: 10 | O20: 8226 | P20: 34.44 | Q20: 9.57 | R20: 9107 | S20: 38.13 | T20: 10.59 | AC20: 0
A21: 11 | O21: 8226 | P21: 34.44 | Q21: 9.57 | R21: 9107 | S21: 38.13 | T21: 10.59 | AC21: 0
A22: 12 | O22: 8226 | P22: 34.44 | Q22: 9.57 | R22: 9107 | S22: 38.13 | T22: 10.59 | AC22: 0
A23: 13 | O23: 8226 | P23: 34.44 | Q23: 9.57 | R23: 9107 | S23: 38.13 | T23: 10.59 | AC23: 0
A24: 14 | O24: 8226 | P24: 34.44 | Q24: 9.57 | R24: 9107 | S24: 38.13 | T24: 10.59 | AC24: 0
A25: 15 | O25: 8226 | P25: 34.44 | Q25: 9.57 | R25: 9107 | S25: 38.13 | T25: 10.59 | AC25: 0
A26: 16 | B26: 89.6226 | C26: 5.0217 | D26: 1.0925 | E26: 0.1154 | F26: 0.1966 | G26: 0.0044 | H26: 0.0501 | I26: 0.0359 | J26: 0.0261 | K26: 0.0043 | L26: 1.7543 | M26: 2.0762 | N26: 0.7519 | O26: 8216 | P26: 34.4 | Q26: 9.56 | R26: 9096 | S26: 38.09 | T26: 10.58 | U26: 11512 | V26: 48.2 | W26: 13.39 | X26: -9.8 | Y26: -10 | Z26: 0.0001 | AA26: 0.0004 | AB26: відс. | AC26: 100.0001
A27: 17 | O27: 8216 | P27: 34.4 | Q27: 9.56 | R27: 9096 | S27: 38.09 | T27: 10.58 | AC27: 0
A28: 18 | O28: 8216 | P28: 34.4 | Q28: 9.56 | R28: 9096 | S28: 38.09 | T28: 10.58 | AC28: 0
A29: 19 | O29: 8216 | P29: 34.4 | Q29: 9.56 | R29: 9096 | S29: 38.09 | T29: 10.58 | AC29: 0
A30: 20 | O30: 8216 | P30: 34.4 | Q30: 9.56 | R30: 9096 | S30: 38.09 | T30: 10.58 | AC30: 0 | AD30: =IF(AC30=100,"ОК"," ") -> 
A31: 21 | O31: 8216 | P31: 34.4 | Q31: 9.56 | R31: 9096 | S31: 38.09 | T31: 10.58 | AC31: 0
A32: 22 | O32: 8216 | P32: 34.4 | Q32: 9.56 | R32: 9096 | S32: 38.09 | T32: 10.58 | AC32: 0
A33: 23 | B33: 89.8663 | C33: 4.883 | D33: 1.0677 | E33: 0.1149 | F33: 0.2093 | G33: 0.0037 | H33: 0.0521 | I33: 0.0375 | J33: 0.0308 | K33: 0.0041 | L33: 1.7124 | M33: 2.0182 | N33: 0.7503 | O33: 8217 | P33: 34.4 | Q33: 9.56 | R33: 9098 | S33: 38.09 | T33: 10.58 | U33: 11527 | V33: 48.26 | W33: 13.41 | X33: -8.8 | Y33: -9.2 | Z33: 0.0001 | AA33: 0.0004 | AB33: відс. | AC33: 100 | AD33: =IF(AC33=100,"ОК"," ") -> ОК
A34: 24 | O34: 8217 | P34: 34.4 | Q34: 9.56 | R34: 9098 | S34: 38.09 | T34: 10.58 | AC34: 0
A35: 25 | O35: 8217 | P35: 34.4 | Q35: 9.56 | R35: 9098 | S35: 38.09 | T35: 10.58 | AC35: 0
A36: 26 | O36: 8217 | P36: 34.4 | Q36: 9.56 | R36: 9098 | S36: 38.09 | T36: 10.58 | AC36: 0
A37: 27 | O37: 8217 | P37: 34.4 | Q37: 9.56 | R37: 9098 | S37: 38.09 | T37: 10.58 | AC37: 0
A38: 28 | O38: 8217 | P38: 34.4 | Q38: 9.56 | R38: 9098 | S38: 38.09 | T38: 10.58 | AC38: 0
A39: 29 | B39: 89.9359 | C39: 4.837 | D39: 1.1118 | E39: 0.1175 | F39: 0.2125 | G39: 0.0032 | H39: 0.051 | I39: 0.0375 | J39: 0.0242 | K39: 0.0031 | L39: 1.6644 | M39: 2.0017 | N39: 0.75 | O39: 8223 | P39: 34.43 | Q39: 9.56 | R39: 9105 | S39: 38.12 | T39: 10.59 | U39: 11539 | V39: 48.31 | W39: 13.42 | X39: -9 | Y39: -9.6 | Z39: 0.0001 | AA39: 0.0004 | AB39: відс. | AC39: 99.9998
A40: 30 | O40: 8223 | P40: 34.43 | Q40: 9.56 | R40: 9105 | S40: 38.12 | T40: 10.59 | AC40: 0
A41: 31 | O41: 8223 | P41: 34.43 | Q41: 9.56 | R41: 9105 | S41: 38.12 | T41: 10.59 | AC41: 0
A42: Рівень одоризації відповідає чинним нормативним документам | O42: =SUMPRODUCT(O11:O41,' розрахунок'!H7:H37)/' розрахунок'!H38 -> 8221.890023 | P42: =SUMPRODUCT(P11:P41,' розрахунок'!H7:H37)/' розрахунок'!H38 -> 34.42316975 | Q42: =SUMPRODUCT(Q11:Q41,' розрахунок'!H7:H37)/' розрахунок'!H38 -> 9.564591403 | R42: =SUMPRODUCT(R11:R41,' розрахунок'!H7:H37)/' розрахунок'!H38 -> 9102.734396 | S42: =SUMPRODUCT(S11:S41,' розрахунок'!H7:H37)/' розрахунок'!H38 -> 38.11316975 | T42: =SUMPRODUCT(T11:T41,' розрахунок'!H7:H37)/' розрахунок'!H38 -> 10.58538829
H43: Середньозважене значення теплоти згоряння:
B46: Начальник управління Чернігівського ЛВУМГ Шутішин В.О. 01.06.2017 р.
C47: Підрозділу підприємства, якому підпорядкована лабораторія | O47: прізвище | R47: підпис | V47: дата
B48: Завідувач лабораторією Лапа І.О. 01.06.2017 р.
C49: Лабораторія, де здійснювалось вимірювання газу | O49: прізвище | R49: підпис | V49: дата
B50: Начальник служби газовимірювання та метрології Макаров О.В. 01.06.2017 р.
C51: Підрозділу, відповідального за облік газу за маршрутом | O51: прізвище | R51: підпис | V51: дата

Sheet розрахунок
A2: Додаток до Паспорту фізико-хімічних показників природного газу по маршруту № 169
A4: Число місяця | B4: Теплота згоряння вища, МДж/м3 | C4: Київська область | H4: Загальний обсяг газу, м3
C5: Обсяг газу переданого за добу, м3
C6: ГРС В.Димерка | D6: ГРС Семиполки | E6: ГРС Залісся | F6: ГРС Калита | G6: ІП "Кока-кола"
A7: 1 | B7: 38.06 | C7: 15115 | D7: 9501 | E7: 2606 | F7: 4419 | G7: 25024 | H7: =SUM(C7:G7) -> 56665
A8: 2 | B8: 38.14 | C8: 15667 | D8: 10250 | E8: 2627 | F8: 4632 | G8: 27663 | H8: 60839
A9: 3 | B9: 38.14 | C9: 14164 | D9: 8932 | E9: 2265 | F9: 3991 | G9: 26776 | H9: 56128
A10: 4 | B10: 38.14 | C10: 12512 | D10: 7620 | E10: 2008 | F10: 3597 | G10: 26265 | H10: 52002
A11: 5 | B11: 38.14 | C11: 12064 | D11: 7820 | E11: 1953 | F11: 3621 | G11: 26120 | H11: 51578
A12: 6 | B12: 38.14 | C12: 12576 | D12: 6904 | E12: 1941 | F12: 3608 | G12: 23886 | H12: 48915
A13: 7 | B13: 38.14 | C13: 10962 | D13: 5464 | E13: 1742 | F13: 3355 | G13: 22756 | H13: 44279
A14: 8 | B14: 38.14 | C14: 12197 | D14: 7974 | E14: 2060 | F14: 3623 | G14: 27811 | H14: 53665
A15: 9 | B15: 38.13 | C15: 17850 | D15: 11610 | E15: 2912 | F15: 4975 | G15: 29098 | H15: 66445
A16: 10 | B16: 38.13 | C16: 26319 | D16: 17348 | E16: 4331 | F16: 6654 | G16: 28702 | H16: 83354
A17: 11 | B17: 38.13 | C17: 22612 | D17: 14713 | E17: 4237 | F17: 6721 | G17: 26491 | H17: 74774
A18: 12 | B18: 38.13 | C18: 19439 | D18: 12235 | E18: 3523 | F18: 6294 | G18: 24720 | H18: 66211
A19: 13 | B19: 38.13 | C19: 27022 | D19: 15147 | E19: 4934 | F19: 7744 | G19: 22983 | H19: 77830
A20: 14 | B20: 38.13 | C20: 22919 | D20: 14118 | E20: 3987 | F20: 6540 | G20: 23237 | H20: 70801
A21: 15 | B21: 38.13 | C21: 15223 | D21: 8874 | E21: 2252 | F21: 4138 | G21: 26112 | H21: 56599
A22: 16 | B22: 38.09 | C22: 15430 | D22: 7799 | E22: 2073 | F22: 3658 | G22: 24336 | H22: 53296
A23: 17 | B23: 38.09 | C23: 16009 | D23: 8963 | E23: 2250 | F23: 4078 | G23: 27044 | H23: 58344
A24: 18 | B24: 38.09 | C24: 14231 | D24: 7939 | E24: 2128 | F24: 3719 | G24: 25940 | H24: 53957
A25: 19 | B25: 38.09 | C25: 13421 | D25: 6370 | E25: 1935 | F25: 3596 | G25: 23614 | H25: 48936
A26: 20 | B26: 38.09 | C26: 13369 | D26: 7459 | E26: 2125 | F26: 3668 | G26: 21244 | H26: 47865
A27: 21 | B27: 38.09 | C27: 12886 | D27: 7069 | E27: 2111 | F27: 3752 | G27: 21223 | H27: 47041
A28: 22 | B28: 38.09 | C28: 10668 | D28: 6229 | E28: 1755 | F28: 3187 | G28: 25530 | H28: 47369
A29: 23 | B29: 38.09 | C29: 10958 | D29: 5133 | E29: 1528 | F29: 2970 | G29: 26221 | H29: 46810
A30: 24 | B30: 38.09 | C30: 9454 | D30: 5190 | E30: 1502 | F30: 2886 | G30: 30181 | H30: 49213
A31: 25 | B31: 38.09 | C31: 9452 | D31: 5464 | E31: 1506 | F31: 2949 | G31: 36447 | H31: 55818
A32: 26 | B32: 38.09 | C32: 11515 | D32: 6957 | E32: 1693 | F32: 3320 | G32: 40300 | H32: 63785
A33: 27 | B33: 38.09 | C33: 13123 | D33: 7406 | E33: 1913 | F33: 3392 | G33: 38476 | H33: 64310
A34: 28 | B34: 38.09 | C34: 11629 | D34: 6418 | E34: 1754 | F34: 3248 | G34: 37200 | H34: 60249
A35: 29 | B35: 38.12 | C35: 10405 | D35: 4989 | E35: 1436 | F35: 2833 | G35: 40657 | H35: 60320
A36: 30 | B36: 38.12 | C36: 9896 | D36: 5824 | E36: 1354 | F36: 2749 | G36: 39964 | H36: 59787
A37: 31 | B37: 38.12 | C37: 8271 | D37: 5473 | E37: 1372 | F37: 2688 | G37: 2110 | H37: 19914
A38: Загальний обсяг газу, м3 | C38: =SUM(C7:C37) -> 447358 | D38: =SUM(D7:D37) -> 263192 | E38: =SUM(E7:E37) -> 71813 | F38: =SUM(F7:F37) -> 126605 | G38: =SUM(G7:G37) -> 848131 | H38: =SUM(H7:H37) -> 1757099
A39: Енергія, МДж | C39: =SUMPRODUCT(B7:B37,C7:C37) -> 17050832.39 | D39: =SUMPRODUCT(B7:B37,D7:D37) -> 10031696.83 | E39: =SUMPRODUCT(B7:B37,E7:E37) -> 2737180.69 | F39: =SUMPRODUCT(B7:B37,F7:F37) -> 4825543.97 | G39: =SUMPRODUCT(B7:B37,G7:G37) -> 32323358.57 | H39: =SUMPRODUCT(B7:B37,H7:H37) -> 66968612.45
A40: Теплота згоряння (середньозважене значення за місяць), МДж/м³ | C40: =C39/C38 -> 38.11451319 | D40: =D39/D38 -> 38.11550818 | E40: =E39/E38 -> 38.11539262 | F40: =F39/F38 -> 38.11495573 | G40: =G39/G38 -> 38.11128065 | H40: =H39/H38 -> 38.11316975
A41: Теплота згоряння (середньозважене значення за місяць), ккал/м³ | C41: =C40*238.8459 -> 9103.495205 | D41: =D40*238.8459 -> 9103.732856 | E41: =E40*238.8459 -> 9103.705253 | F41: =F40*238.8459 -> 9103.600904 | G41: =G40*238.8459 -> 9102.723127 | H41: =H40*238.8459 -> 9103.17433
A42: Теплота згоряння (середньозважене значення за місяць), кВт*год./м³ | C42: =C40/3.6 -> 10.58736477 | D42: =D40/3.6 -> 10.58764116 | E42: =E40/3.6 -> 10.58760906 | F42: =F40/3.6 -> 10.5874877 | G42: =G40/3.6 -> 10.58646685 | H42: =H40/3.6 -> 10.5869916

Sheet додаток
A2: Додаток до Паспорту фізико-хімічних показників природного газу № 169
A4: Область | B4: ГРС, прямий споживач | C4: Cередньозважене значення вищої теплоти згоряння
C5: МДж/м³ | D5: ккал/м³ | E5: кВт*год./м³
A6: Київська область | B6: ГРС В.Димерка | C6: 38.11 | D6: 9103 | E6: 10.59
B7: ГРС Семиполки | C7: 38.12 | D7: 9104 | E7: 10.59
B8: ГРС Залісся | C8: 38.12 | D8: 9104 | E8: 10.59
B9: ГРС Калита | C9: 38.11 | D9: 9104 | E9: 10.59
B10: ІП "КОКА-КОЛА БЕВЕРІДЖИЗ УКРАЇНА ЛІМІТЕД" | C10: 38.11 | D10: 9103 | E10: 10.59
A11: Середньозважене значення вищої теплоти згоряння по маршруту № 169 | C11: 38.11 | D11: 9103 | E11: 10.59
A15: Начальник управління Чернігівського ЛВУМГ | D15: Шутішин В.О. | F15: 01.06.2017 р.
A16: Підрозділу підприємства, якому підпорядкована лабораторія | D16: прізвище | E16: підпис | F16: дата
A17: Завідувач лабораторією | D17: Лапа І.О. | F17: 01.06.2017 р.
A18: Лабораторія, де здійснювалось вимірювання газу | D18: прізвище | E18: підпис | F18: дата
A19: Начальник служби газовимірювання та метрології | D19: Макаров О.В. | F19: 01.06.2017 р.
A20: Підрозділу, відповідального за облік газу за маршрутом | D20: прізвище | E20: підпис | F20: дата

Sheet variablesList (hidden)
A1: 3 | B1: x:\gaysin | C1: 10, 11, 24, 25, 127, 128, 132, 180, 207, 215 | D1: x:\
B2: x:\Illinci
B3: x:\Talne
